[Event "Titled Tuesday Blitz December 13 Early 2022"]
[White "Kuchava, Ana"]
[Black "Avazkhonov, Alikhon"]
[WhiteFideId "13605348"]
[BlackFideId "14208504"]
[WhiteElo "2001"]
[BlackElo "1739"]
[Result "0-1"]
[Round "03"]
[TimeControl "180+1"]
[Date "2022.12.14"]
[WhiteClock "0:00:02"]
[BlackClock "0:00:05"]

1. d4 {[%clk 0:03:00]}  Nf6 {[%clk 0:02:58]} 2. Nf3 {[%clk 0:03:00]}  e6 {[%clk 0:02:58]} 3. c4 {[%clk 0:02:59]}  Bb4+ {[%clk 0:02:58]} 4. Bd2 {[%clk 0:02:55]}  Qe7 {[%clk 0:02:57]} 5. Nc3 {[%clk 0:02:53]}  Bxc3 {[%clk 0:02:50]} 6. Bxc3 {[%clk 0:02:53]}  Ne4 {[%clk 0:02:51]} 7. Qc2 {[%clk 0:02:43]}  Nxc3 {[%clk 0:02:30]} 8. Qxc3 {[%clk 0:02:44]}  O-O {[%clk 0:02:30]} 9. e4 {[%clk 0:02:41]}  d6 {[%clk 0:02:29]} 10. Bd3 {[%clk 0:02:31]}  c5 {[%clk 0:02:28]} 11. O-O {[%clk 0:02:27]}  Nc6 {[%clk 0:02:28]} 12. d5 {[%clk 0:02:26]}  exd5 {[%clk 0:02:27]} 13. exd5 {[%clk 0:02:19]}  Nb4 {[%clk 0:02:05]} 14. Rfe1 {[%clk 0:02:10]}  Qd8 {[%clk 0:02:04]} 15. Bb1 {[%clk 0:02:03]}  Bg4 {[%clk 0:01:43]} 16. h3 {[%clk 0:01:58]}  Bxf3 {[%clk 0:01:41]} 17. Qxf3 {[%clk 0:01:59]}  Re8 {[%clk 0:01:38]} 18. Be4 {[%clk 0:01:49]}  Re5 {[%clk 0:01:29]} 19. a3 {[%clk 0:01:47]}  Na6 {[%clk 0:01:28]} 20. Bd3 {[%clk 0:01:42]}  Qe7 {[%clk 0:01:26]} 21. Rxe5 {[%clk 0:01:18]}  Qxe5 {[%clk 0:01:27]} 22. Qe4 {[%clk 0:01:10]}  Qxe4 {[%clk 0:01:21]} 23. Bxe4 {[%clk 0:01:11]}  Re8 {[%clk 0:01:22]} 24. Bd3 {[%clk 0:01:00]}  g6 {[%clk 0:01:18]} 25. Kf1 {[%clk 0:00:57]}  f5 {[%clk 0:01:13]} 26. Re1 {[%clk 0:00:55]}  Re5 {[%clk 0:00:59]} 27. f4 {[%clk 0:00:51]}  Rxe1+ {[%clk 0:00:59]} 28. Kxe1 {[%clk 0:00:52]}  Kf7 {[%clk 0:00:59]} 29. Kd2 {[%clk 0:00:51]}  Nc7 {[%clk 0:00:54]} 30. b4 {[%clk 0:00:45]}  h5 {[%clk 0:00:28]} 31. bxc5 {[%clk 0:00:23]}  dxc5 {[%clk 0:00:29]} 32. Be2 {[%clk 0:00:22]}  h4 {[%clk 0:00:27]} 33. Bf3 {[%clk 0:00:20]}  Ke7 {[%clk 0:00:26]} 34. Kc3 {[%clk 0:00:17]}  Kd6 {[%clk 0:00:27]} 35. Kd3 {[%clk 0:00:14]}  b5 {[%clk 0:00:15]} 36. cxb5 {[%clk 0:00:14]}  Nxb5 {[%clk 0:00:06]} 37. a4 {[%clk 0:00:10]}  Nd4 {[%clk 0:00:04]} 38. Bd1 {[%clk 0:00:09]}  Kxd5 {[%clk 0:00:03]} 39. Ke3 {[%clk 0:00:08]}  c4 {[%clk 0:00:03]} 40. Kd2 {[%clk 0:00:08]}  Ke4 {[%clk 0:00:03]} 41. Kc3 {[%clk 0:00:05]}  Ne6 {[%clk 0:00:03]} 42. Kxc4 {[%clk 0:00:05]}  Kxf4 {[%clk 0:00:04]} 43. Bf3 {[%clk 0:00:06]}  Ng5 {[%clk 0:00:04]} 44. Bd5 {[%clk 0:00:04]}  Kg3 {[%clk 0:00:04]} 45. Kd4 {[%clk 0:00:04]}  f4 {[%clk 0:00:04]} 46. Kd3 {[%clk 0:00:03]}  f3 {[%clk 0:00:05]} 47. gxf3 {[%clk 0:00:04]}  Nxf3 {[%clk 0:00:05]} 48. Be6 {[%clk 0:00:04]}  Ng5 {[%clk 0:00:05]} 49. Bg4 {[%clk 0:00:03]}  Nxh3 {[%clk 0:00:06]} 50. Ke3 {[%clk 0:00:02]}  Kxg4 {[%clk 0:00:05]} 0-1


[Site "https://www.chess.com"]

[Event "Titled Tuesday Blitz December 13 Early 2022"]
[White "Kuderinov, Kirill"]
[Black "Devaev, Alexander"]
[WhiteFideId "13701568"]
[BlackFideId "4169395"]
[WhiteElo "2459"]
[BlackElo "2225"]
[Result "1-0"]
[Round "03"]
[TimeControl "180+1"]
[Date "2022.12.14"]
[WhiteClock "0:01:32"]
[BlackClock "0:00:56"]

1. e4 {[%clk 0:03:00]}  c6 {[%clk 0:02:58]} 2. d4 {[%clk 0:03:00]}  d5 {[%clk 0:02:53]} 3. exd5 {[%clk 0:03:00]}  cxd5 {[%clk 0:02:53]} 4. Bd3 {[%clk 0:03:01]}  Nc6 {[%clk 0:02:53]} 5. c3 {[%clk 0:03:00]}  g6 {[%clk 0:02:53]} 6. h3 {[%clk 0:02:56]}  Bf5 {[%clk 0:02:54]} 7. Be2 {[%clk 0:02:54]}  Nf6 {[%clk 0:02:53]} 8. Nf3 {[%clk 0:02:55]}  Bg7 {[%clk 0:02:51]} 9. O-O {[%clk 0:02:55]}  O-O {[%clk 0:02:51]} 10. Bf4 {[%clk 0:02:54]}  Re8 {[%clk 0:02:51]} 11. Nbd2 {[%clk 0:02:54]}  Ne4 {[%clk 0:02:51]} 12. Re1 {[%clk 0:02:52]}  Nxd2 {[%clk 0:02:51]} 13. Qxd2 {[%clk 0:02:51]}  Be4 {[%clk 0:02:50]} 14. Ne5 {[%clk 0:02:46]}  f6 {[%clk 0:02:39]} 15. Nxc6 {[%clk 0:02:39]}  bxc6 {[%clk 0:02:37]} 16. Rac1 {[%clk 0:02:28]}  e5 {[%clk 0:02:28]} 17. Bh6 {[%clk 0:02:23]}  Bh8 {[%clk 0:02:18]} 18. b3 {[%clk 0:02:14]}  Qd7 {[%clk 0:01:32]} 19. Bf1 {[%clk 0:01:58]}  g5 {[%clk 0:01:19]} 20. Rxe4 {[%clk 0:01:45]}  dxe4 {[%clk 0:01:09]} 21. Bc4+ {[%clk 0:01:45]}  Re6 {[%clk 0:01:09]} 22. dxe5 {[%clk 0:01:45]}  Qf7 {[%clk 0:01:05]} 23. Bxe6 {[%clk 0:01:42]}  Qxe6 {[%clk 0:01:05]} 24. exf6 {[%clk 0:01:42]}  Bxf6 {[%clk 0:01:01]} 25. Bxg5 {[%clk 0:01:41]}  Rd8 {[%clk 0:00:57]} 26. Qf4 {[%clk 0:01:38]}  Rf8 {[%clk 0:00:58]} 27. Bxf6 {[%clk 0:01:37]}  Rxf6 {[%clk 0:00:58]} 28. Qb8+ {[%clk 0:01:34]}  Kg7 {[%clk 0:00:56]} 29. Qxa7+ {[%clk 0:01:34]}  Rf7 {[%clk 0:00:57]} 30. Qd4+ {[%clk 0:01:33]}  Kh6 {[%clk 0:00:57]} 31. Re1 {[%clk 0:01:33]}  Re7 {[%clk 0:00:56]} 32. Qe3+ {[%clk 0:01:32]} 1-0


[Site "https://www.chess.com"]

[Event "Titled Tuesday Blitz December 13 Early 2022"]
[White "Kulkarni, Vikramaditya"]
[Black "Liu, Xiangyi"]
[WhiteFideId "5009847"]
[BlackFideId "8605718"]
[WhiteElo "2273"]
[BlackElo "2323"]
[Result "0-1"]
[Round "03"]
[TimeControl "180+1"]
[Date "2022.12.14"]
[WhiteClock "0:00:02"]
[BlackClock "0:00:57"]

1. c4 {[%clk 0:03:00]}  e5 {[%clk 0:02:59]} 2. Nc3 {[%clk 0:03:00]}  b6 {[%clk 0:02:58]} 3. e3 {[%clk 0:02:57]}  Bb7 {[%clk 0:02:58]} 4. d4 {[%clk 0:02:57]}  Nc6 {[%clk 0:02:58]} 5. d5 {[%clk 0:02:56]}  Nce7 {[%clk 0:02:58]} 6. Nf3 {[%clk 0:02:51]}  d6 {[%clk 0:02:56]} 7. Be2 {[%clk 0:02:51]}  h6 {[%clk 0:02:52]} 8. O-O {[%clk 0:02:48]}  f5 {[%clk 0:02:52]} 9. e4 {[%clk 0:02:41]}  f4 {[%clk 0:02:52]} 10. Nh4 {[%clk 0:02:39]}  g6 {[%clk 0:02:46]} 11. Qa4+ {[%clk 0:02:32]}  Kf7 {[%clk 0:02:45]} 12. g3 {[%clk 0:02:31]}  g5 {[%clk 0:02:44]} 13. Nf5 {[%clk 0:02:26]}  Nxf5 {[%clk 0:02:43]} 14. exf5 {[%clk 0:02:27]}  Nf6 {[%clk 0:02:42]} 15. gxf4 {[%clk 0:02:21]}  gxf4 {[%clk 0:02:42]} 16. Kh1 {[%clk 0:02:19]}  Qc8 {[%clk 0:02:34]} 17. Qc2 {[%clk 0:02:15]}  c6 {[%clk 0:02:34]} 18. Bf3 {[%clk 0:02:01]}  cxd5 {[%clk 0:02:32]} 19. cxd5 {[%clk 0:02:00]}  Qc4 {[%clk 0:02:05]} 20. Rd1 {[%clk 0:01:34]}  Rc8 {[%clk 0:02:01]} 21. Qb3 {[%clk 0:00:35]}  Qc5 {[%clk 0:01:53]} 22. Bd2 {[%clk 0:00:21]}  Qxf2 {[%clk 0:01:12]} 23. Ne4 {[%clk 0:00:19]}  Nxe4 {[%clk 0:01:12]} 24. Bxe4 {[%clk 0:00:20]}  Rg8 {[%clk 0:01:12]} 25. Bc3 {[%clk 0:00:09]}  f3 {[%clk 0:01:08]} 26. Rd2 {[%clk 0:00:07]}  Qe3 {[%clk 0:01:02]} 27. Qc2 {[%clk 0:00:06]}  Rc4 {[%clk 0:00:57]} 28. Bd3 {[%clk 0:00:02]}  Rcg4 {[%clk 0:00:57]} 0-1


[Site "https://www.chess.com"]

[Event "Titled Tuesday Blitz December 13 Early 2022"]
[White "Lacasa Diaz, Jose Antonio"]
[Black "Yedidia, Daniel"]
[WhiteFideId "2203375"]
[BlackFideId "30905907"]
[WhiteElo "2338"]
[BlackElo "2553"]
[Result "0-1"]
[Round "03"]
[TimeControl "180+1"]
[Date "2022.12.14"]
[WhiteClock "0:00:13"]
[BlackClock "0:00:11"]

1. e4 {[%clk 0:02:55]}  e5 {[%clk 0:02:59]} 2. Nf3 {[%clk 0:02:55]}  Nc6 {[%clk 0:02:59]} 3. Bb5 {[%clk 0:02:50]}  a6 {[%clk 0:02:57]} 4. Ba4 {[%clk 0:02:50]}  Nf6 {[%clk 0:02:52]} 5. O-O {[%clk 0:02:50]}  Be7 {[%clk 0:02:51]} 6. d3 {[%clk 0:02:50]}  b5 {[%clk 0:02:52]} 7. Bb3 {[%clk 0:02:49]}  O-O {[%clk 0:02:52]} 8. Nc3 {[%clk 0:02:49]}  d6 {[%clk 0:02:53]} 9. a3 {[%clk 0:02:49]}  Bg4 {[%clk 0:02:53]} 10. Be3 {[%clk 0:02:49]}  Nd7 {[%clk 0:02:47]} 11. h3 {[%clk 0:02:35]}  Bh5 {[%clk 0:02:27]} 12. Bd5 {[%clk 0:02:27]}  Ndb8 {[%clk 0:02:23]} 13. g4 {[%clk 0:02:21]}  Bg6 {[%clk 0:02:22]} 14. Ne2 {[%clk 0:02:22]}  a5 {[%clk 0:02:14]} 15. Ng3 {[%clk 0:02:17]}  Ra6 {[%clk 0:02:12]} 16. c3 {[%clk 0:02:14]}  Nd7 {[%clk 0:02:06]} 17. Kh2 {[%clk 0:01:53]}  Nb6 {[%clk 0:01:57]} 18. Bb3 {[%clk 0:01:45]}  a4 {[%clk 0:01:47]} 19. Ba2 {[%clk 0:01:43]}  Nd7 {[%clk 0:01:41]} 20. Rg1 {[%clk 0:01:42]}  Kh8 {[%clk 0:01:29]} 21. Nf5 {[%clk 0:01:41]}  Nc5 {[%clk 0:01:13]} 22. Qd2 {[%clk 0:01:22]}  Nb3 {[%clk 0:01:06]} 23. Bxb3 {[%clk 0:01:07]}  axb3 {[%clk 0:01:06]} 24. Qd1 {[%clk 0:00:56]}  Na5 {[%clk 0:00:55]} 25. d4 {[%clk 0:00:53]}  Qa8 {[%clk 0:00:32]} 26. Nxe7 {[%clk 0:00:40]}  Bxe4 {[%clk 0:00:31]} 27. Ng5 {[%clk 0:00:30]}  Nc4 {[%clk 0:00:25]} 28. d5 {[%clk 0:00:19]}  Bc2 {[%clk 0:00:23]} 29. Qf3 {[%clk 0:00:20]}  f5 {[%clk 0:00:20]} 30. Ne6 {[%clk 0:00:19]}  Rf6 {[%clk 0:00:15]} 31. Nxf5 {[%clk 0:00:20]}  g6 {[%clk 0:00:09]} 32. Bg5 {[%clk 0:00:17]}  Rf7 {[%clk 0:00:10]} 33. Qg3 {[%clk 0:00:13]}  gxf5 {[%clk 0:00:10]} 34. gxf5 {[%clk 0:00:14]}  Bxf5 {[%clk 0:00:03]} 35. Bh6 {[%clk 0:00:12]}  Bg6 {[%clk 0:00:02]} 36. f4 {[%clk 0:00:11]}  Qxd5 {[%clk 0:00:02]} 37. Ng5 {[%clk 0:00:10]}  Qd2+ {[%clk 0:00:02]} 38. Qg2 {[%clk 0:00:10]}  Qxf4+ {[%clk 0:00:03]} 39. Kh1 {[%clk 0:00:10]}  Rf5 {[%clk 0:00:02]} 40. Nf3 {[%clk 0:00:09]}  Ne3 {[%clk 0:00:03]} 41. Qg3 {[%clk 0:00:09]}  Qxf3+ {[%clk 0:00:03]} 42. Qxf3 {[%clk 0:00:09]}  Rxf3 {[%clk 0:00:04]} 43. Bg7+ {[%clk 0:00:09]}  Kxg7 {[%clk 0:00:04]} 44. Kh2 {[%clk 0:00:10]}  Rf2+ {[%clk 0:00:04]} 45. Rg2 {[%clk 0:00:11]}  Rxg2+ {[%clk 0:00:05]} 46. Kh1 {[%clk 0:00:11]}  Be4 {[%clk 0:00:05]} 47. Rg1 {[%clk 0:00:11]}  Rxg1+ {[%clk 0:00:06]} 48. Kxg1 {[%clk 0:00:11]}  c5 {[%clk 0:00:06]} 49. Kf2 {[%clk 0:00:12]}  Nf5 {[%clk 0:00:06]} 50. Ke2 {[%clk 0:00:12]}  b4 {[%clk 0:00:07]} 51. Kd2 {[%clk 0:00:13]}  bxa3 {[%clk 0:00:07]} 52. bxa3 {[%clk 0:00:13]}  Rxa3 {[%clk 0:00:08]} 53. Kc1 {[%clk 0:00:13]}  Ra2 {[%clk 0:00:08]} 54. Kd1 {[%clk 0:00:12]}  Rc2 {[%clk 0:00:09]} 55. Ke1 {[%clk 0:00:13]}  b2 {[%clk 0:00:10]} 56. Kf1 {[%clk 0:00:13]}  b1=Q# {[%clk 0:00:11]} 0-1


[Site "https://www.chess.com"]

[Event "Titled Tuesday Blitz December 13 Early 2022"]
[White "Le Ruyet, Leopold"]
[Black "Hoffmann, Asa"]
[WhiteFideId "645923"]
[BlackFideId "2001470"]
[WhiteElo "2276"]
[BlackElo "2117"]
[Result "1-0"]
[Round "03"]
[TimeControl "180+1"]
[Date "2022.12.14"]
[WhiteClock "0:00:18"]
[BlackClock "0:00:09"]

1. e4 {[%clk 0:03:00]}  d6 {[%clk 0:02:58]} 2. d4 {[%clk 0:03:00]}  Nf6 {[%clk 0:02:55]} 3. Nc3 {[%clk 0:03:00]}  c6 {[%clk 0:02:54]} 4. g3 {[%clk 0:02:36]}  Nbd7 {[%clk 0:02:51]} 5. Bg2 {[%clk 0:02:36]}  e5 {[%clk 0:02:51]} 6. Nf3 {[%clk 0:02:37]}  Be7 {[%clk 0:02:50]} 7. O-O {[%clk 0:02:37]}  b5 {[%clk 0:02:50]} 8. a4 {[%clk 0:02:34]}  b4 {[%clk 0:02:49]} 9. Ne2 {[%clk 0:02:28]}  Nxe4 {[%clk 0:02:40]} 10. Nxe5 {[%clk 0:02:21]}  dxe5 {[%clk 0:02:13]} 11. Bxe4 {[%clk 0:02:20]}  Bb7 {[%clk 0:02:06]} 12. a5 {[%clk 0:02:13]}  a6 {[%clk 0:01:57]} 13. dxe5 {[%clk 0:02:01]}  Nxe5 {[%clk 0:01:56]} 14. Bf4 {[%clk 0:02:01]}  Ng6 {[%clk 0:01:54]} 15. Be3 {[%clk 0:01:59]}  O-O {[%clk 0:01:51]} 16. Bb6 {[%clk 0:01:53]}  Qc8 {[%clk 0:01:48]} 17. Nd4 {[%clk 0:01:43]}  c5 {[%clk 0:01:42]} 18. Bxb7 {[%clk 0:01:39]}  Qxb7 {[%clk 0:01:41]} 19. Qf3 {[%clk 0:01:30]}  Qxf3 {[%clk 0:01:32]} 20. Nxf3 {[%clk 0:01:30]}  Rfc8 {[%clk 0:01:32]} 21. Rad1 {[%clk 0:01:24]}  Bf6 {[%clk 0:01:31]} 22. b3 {[%clk 0:01:13]}  c4 {[%clk 0:01:30]} 23. Rd7 {[%clk 0:01:08]}  cxb3 {[%clk 0:01:27]} 24. cxb3 {[%clk 0:01:09]}  Rc3 {[%clk 0:01:26]} 25. Nd2 {[%clk 0:01:09]}  Ne5 {[%clk 0:01:24]} 26. Rb7 {[%clk 0:01:09]}  Rd3 {[%clk 0:01:21]} 27. Ne4 {[%clk 0:01:05]}  Rxb3 {[%clk 0:01:14]} 28. Rc1 {[%clk 0:01:01]}  Rd3 {[%clk 0:00:42]} 29. Nc5 {[%clk 0:00:52]}  Rd5 {[%clk 0:00:35]} 30. Nxa6 {[%clk 0:00:50]}  b3 {[%clk 0:00:32]} 31. Nc7 {[%clk 0:00:48]}  Rc8 {[%clk 0:00:28]} 32. Nxd5 {[%clk 0:00:38]}  Rxc1+ {[%clk 0:00:26]} 33. Kg2 {[%clk 0:00:39]}  h5 {[%clk 0:00:26]} 34. Nxf6+ {[%clk 0:00:33]}  gxf6 {[%clk 0:00:26]} 35. Bd4 {[%clk 0:00:33]}  Rb1 {[%clk 0:00:24]} 36. a6 {[%clk 0:00:32]}  Nc6 {[%clk 0:00:21]} 37. a7 {[%clk 0:00:25]}  Ra1 {[%clk 0:00:21]} 38. Rb8+ {[%clk 0:00:18]}  Kg7 {[%clk 0:00:20]} 39. a8=Q {[%clk 0:00:17]}  Rxa8 {[%clk 0:00:18]} 40. Rxa8 {[%clk 0:00:18]}  Nxd4 {[%clk 0:00:10]} 41. Rb8 {[%clk 0:00:18]}  f5 {[%clk 0:00:09]} 42. Rb4 {[%clk 0:00:18]} 1-0


[Site "https://www.chess.com"]

[Event "Titled Tuesday Blitz December 13 Early 2022"]
[White "Lenderman, Aleksandr"]
[Black "Talibov, Shiroghlan"]
[WhiteFideId "2021285"]
[BlackFideId "13429078"]
[WhiteElo "2607"]
[BlackElo "2261"]
[Result "1-0"]
[Round "03"]
[TimeControl "180+1"]
[Date "2022.12.13"]
[WhiteClock "0:00:12"]
[BlackClock "0:00:02"]

1. d4 {[%clk 0:03:00]}  Nf6 {[%clk 0:02:57]} 2. Bg5 {[%clk 0:02:56]}  e6 {[%clk 0:02:54]} 3. e4 {[%clk 0:02:55]}  d5 {[%clk 0:02:48]} 4. exd5 {[%clk 0:02:47]}  exd5 {[%clk 0:02:47]} 5. Bd3 {[%clk 0:02:45]}  c5 {[%clk 0:02:42]} 6. Nf3 {[%clk 0:02:42]}  Nc6 {[%clk 0:02:42]} 7. O-O {[%clk 0:02:41]}  c4 {[%clk 0:02:34]} 8. Re1+ {[%clk 0:02:41]}  Be7 {[%clk 0:02:34]} 9. Bf1 {[%clk 0:02:41]}  Be6 {[%clk 0:02:32]} 10. b3 {[%clk 0:02:39]}  b5 {[%clk 0:02:31]} 11. a4 {[%clk 0:02:37]}  a6 {[%clk 0:02:31]} 12. axb5 {[%clk 0:02:34]}  axb5 {[%clk 0:02:32]} 13. Rxa8 {[%clk 0:02:35]}  Qxa8 {[%clk 0:02:31]} 14. Nc3 {[%clk 0:02:35]}  Qa5 {[%clk 0:02:22]} 15. Qa1 {[%clk 0:02:08]}  Bb4 {[%clk 0:02:05]} 16. Qxa5 {[%clk 0:02:05]}  Bxa5 {[%clk 0:02:05]} 17. Bd2 {[%clk 0:02:05]}  Bxc3 {[%clk 0:01:59]} 18. Bxc3 {[%clk 0:02:04]}  Ne4 {[%clk 0:02:00]} 19. Bb2 {[%clk 0:02:00]}  O-O {[%clk 0:01:47]} 20. bxc4 {[%clk 0:02:01]}  bxc4 {[%clk 0:01:46]} 21. Bxc4 {[%clk 0:02:02]}  dxc4 {[%clk 0:01:17]} 22. Rxe4 {[%clk 0:02:00]}  Rb8 {[%clk 0:01:06]} 23. Bc3 {[%clk 0:02:00]}  Bd5 {[%clk 0:00:55]} 24. Re1 {[%clk 0:01:59]}  f6 {[%clk 0:00:54]} 25. Nd2 {[%clk 0:01:58]}  Ra8 {[%clk 0:00:51]} 26. Ra1 {[%clk 0:01:51]}  Rxa1+ {[%clk 0:00:50]} 27. Bxa1 {[%clk 0:01:52]}  Nb4 {[%clk 0:00:51]} 28. c3 {[%clk 0:01:52]}  Nd3 {[%clk 0:00:51]} 29. Nf1 {[%clk 0:01:49]}  Kf7 {[%clk 0:00:49]} 30. Ne3 {[%clk 0:01:49]}  Ke6 {[%clk 0:00:49]} 31. f3 {[%clk 0:01:39]}  f5 {[%clk 0:00:40]} 32. Kf1 {[%clk 0:01:37]}  g6 {[%clk 0:00:39]} 33. Ke2 {[%clk 0:01:36]}  Kd6 {[%clk 0:00:39]} 34. Kd2 {[%clk 0:01:36]}  Kc6 {[%clk 0:00:39]} 35. Kc2 {[%clk 0:01:27]}  f4 {[%clk 0:00:31]} 36. Ng4 {[%clk 0:01:25]}  Ne1+ {[%clk 0:00:29]} 37. Kd2 {[%clk 0:01:25]}  Nxg2 {[%clk 0:00:30]} 38. Bb2 {[%clk 0:01:23]}  Nh4 {[%clk 0:00:24]} 39. Ne5+ {[%clk 0:01:22]}  Kd6 {[%clk 0:00:24]} 40. Ke2 {[%clk 0:01:23]}  Ke6 {[%clk 0:00:24]} 41. Kf2 {[%clk 0:01:20]}  Nf5 {[%clk 0:00:23]} 42. Bc1 {[%clk 0:01:16]}  g5 {[%clk 0:00:24]} 43. Ng4 {[%clk 0:01:15]}  h5 {[%clk 0:00:22]} 44. Ne5 {[%clk 0:01:15]}  Nh4 {[%clk 0:00:18]} 45. Bd2 {[%clk 0:01:11]}  Kf5 {[%clk 0:00:17]} 46. h3 {[%clk 0:01:06]}  Kf6 {[%clk 0:00:13]} 47. Ke2 {[%clk 0:01:03]}  Be6 {[%clk 0:00:12]} 48. Be1 {[%clk 0:01:02]}  Nf5 {[%clk 0:00:12]} 49. Bf2 {[%clk 0:00:59]}  Nd6 {[%clk 0:00:10]} 50. h4 {[%clk 0:00:58]}  g4 {[%clk 0:00:10]} 51. Be1 {[%clk 0:00:56]}  g3 {[%clk 0:00:10]} 52. Bd2 {[%clk 0:00:56]}  Kf5 {[%clk 0:00:09]} 53. Nc6 {[%clk 0:00:56]}  Bd5 {[%clk 0:00:06]} 54. Ne7+ {[%clk 0:00:57]}  Ke6 {[%clk 0:00:06]} 55. Nxd5 {[%clk 0:00:57]}  Kxd5 {[%clk 0:00:07]} 56. Bxf4 {[%clk 0:00:57]}  Nf5 {[%clk 0:00:08]} 57. Bg5 {[%clk 0:00:56]}  Ke6 {[%clk 0:00:07]} 58. Kf1 {[%clk 0:00:55]}  Kd5 {[%clk 0:00:08]} 59. Kg2 {[%clk 0:00:55]}  Ke6 {[%clk 0:00:08]} 60. Kh3 {[%clk 0:00:56]}  Kd5 {[%clk 0:00:06]} 61. Bf4 {[%clk 0:00:56]}  g2 {[%clk 0:00:03]} 62. Bh2 {[%clk 0:00:27]}  Ne3 {[%clk 0:00:04]} 63. Bg1 {[%clk 0:00:27]}  Nd1 {[%clk 0:00:04]} 64. Kxg2 {[%clk 0:00:28]}  Nxc3 {[%clk 0:00:05]} 65. Be3 {[%clk 0:00:28]}  Nd1 {[%clk 0:00:03]} 66. Bc1 {[%clk 0:00:29]}  c3 {[%clk 0:00:02]} 67. Kg3 {[%clk 0:00:30]}  Kxd4 {[%clk 0:00:02]} 68. Kf4 {[%clk 0:00:30]}  Kd3 {[%clk 0:00:01]} 69. Kg5 {[%clk 0:00:31]}  Nb2 {[%clk 0:00:01]} 70. f4 {[%clk 0:00:29]}  Ke2 {[%clk 0:00:02]} 71. f5 {[%clk 0:00:28]}  Nd3 {[%clk 0:00:02]} 72. Ba3 {[%clk 0:00:17]}  Ne5 {[%clk 0:00:02]} 73. Kxh5 {[%clk 0:00:16]}  Kf3 {[%clk 0:00:01]} 74. Kg5 {[%clk 0:00:16]}  Ke4 {[%clk 0:00:02]} 75. f6 {[%clk 0:00:16]}  c2 {[%clk 0:00:01]} 76. h5 {[%clk 0:00:15]}  Kd5 {[%clk 0:00:01]} 77. Kf5 {[%clk 0:00:13]}  Nf7 {[%clk 0:00:01]} 78. Kg6 {[%clk 0:00:12]}  Ke6 {[%clk 0:00:02]} 79. Kg7 {[%clk 0:00:12]} 1-0


[Site "https://www.chess.com"]

[Event "Titled Tuesday Blitz December 13 Early 2022"]
[White "Levine, David"]
[Black "Sonnenschein, Philipp"]
[WhiteFideId "2011611"]
[BlackFideId "16250877"]
[WhiteElo "2116"]
[BlackElo "2224"]
[Result "0-1"]
[Round "03"]
[TimeControl "180+1"]
[Date "2022.12.14"]
[WhiteClock "0:00:09"]
[BlackClock "0:00:25"]

1. d4 {[%clk 0:02:59]}  Nf6 {[%clk 0:02:59]} 2. c4 {[%clk 0:02:59]}  e6 {[%clk 0:02:59]} 3. g3 {[%clk 0:02:59]}  c5 {[%clk 0:02:59]} 4. d5 {[%clk 0:02:59]}  exd5 {[%clk 0:03:00]} 5. cxd5 {[%clk 0:02:59]}  d6 {[%clk 0:03:00]} 6. Nc3 {[%clk 0:02:59]}  g6 {[%clk 0:03:00]} 7. Bg2 {[%clk 0:02:59]}  Bg7 {[%clk 0:02:59]} 8. Nf3 {[%clk 0:03:00]}  O-O {[%clk 0:02:57]} 9. O-O {[%clk 0:03:00]}  Re8 {[%clk 0:02:52]} 10. Nd2 {[%clk 0:03:00]}  Nbd7 {[%clk 0:02:41]} 11. Qc2 {[%clk 0:02:57]}  Rb8 {[%clk 0:02:38]} 12. a4 {[%clk 0:02:56]}  b6 {[%clk 0:02:35]} 13. h3 {[%clk 0:02:54]}  a6 {[%clk 0:02:33]} 14. e4 {[%clk 0:02:46]}  b5 {[%clk 0:02:31]} 15. axb5 {[%clk 0:02:45]}  axb5 {[%clk 0:02:32]} 16. b4 {[%clk 0:02:39]}  cxb4 {[%clk 0:02:24]} 17. Na2 {[%clk 0:02:30]}  Nxd5 {[%clk 0:02:16]} 18. Rb1 {[%clk 0:02:19]}  Nc3 {[%clk 0:02:10]} 19. Re1 {[%clk 0:02:00]}  Nxb1 {[%clk 0:02:06]} 20. Qxb1 {[%clk 0:01:56]}  Nc5 {[%clk 0:01:58]} 21. Bf1 {[%clk 0:01:52]}  Bd7 {[%clk 0:01:29]} 22. Nxb4 {[%clk 0:01:51]}  Ra8 {[%clk 0:01:17]} 23. Bb2 {[%clk 0:01:40]}  Ra4 {[%clk 0:01:06]} 24. Bxg7 {[%clk 0:01:37]}  Kxg7 {[%clk 0:01:07]} 25. Nd5 {[%clk 0:01:35]}  f6 {[%clk 0:00:49]} 26. Qb2 {[%clk 0:01:19]}  Bc6 {[%clk 0:00:38]} 27. Bxb5 {[%clk 0:01:11]}  Bxb5 {[%clk 0:00:38]} 28. Qxb5 {[%clk 0:01:11]}  Ra2 {[%clk 0:00:38]} 29. Qb4 {[%clk 0:00:53]}  Qa5 {[%clk 0:00:32]} 30. Nc4 {[%clk 0:00:47]}  Qxb4 {[%clk 0:00:31]} 31. Nxb4 {[%clk 0:00:47]}  Ra4 {[%clk 0:00:28]} 32. Nxd6 {[%clk 0:00:40]}  Re6 {[%clk 0:00:27]} 33. Nd3 {[%clk 0:00:09]}  Nxd3 {[%clk 0:00:25]} 0-1


[Site "https://www.chess.com"]